bitfinex-derivatives/quotes_ETHF0:USTF0_20210102
["timestamp","ask_amount","ask_price","bid_price","bid_amount"]
[1609596034632,74.89571192,768.0,767.93,6.01438]
[1609596035445,74.89571192,768.0,767.94,29.08955888]
[1609596036434,6.01438,767.95,767.94,29.08955888]
[1609596037035,6.01438,767.95,767.94,20.25795888]
[1609596038540,6.01438,767.95,767.88,26.07964908]
[1609596040745,6.01438,767.95,767.53,3.567]
[1609596040945,6.01438,767.95,767.41,26.11598698]
[1609596041145,74.89571192,768.0,767.41,26.11598698]
[1609596041855,74.89571192,768.0,767.43,26.0534657]
[1609596042453,74.89571192,768.0,767.99,6.01438]
[1609596043854,74.89571192,768.0,767.94,3.271]
[1609596044455,74.89571192,768.0,767.68,26.0160159]
[1609596044456,74.89571192,768.0,767.74,6.01438]
[1609596046356,74.89571192,768.0,767.92,6.01438]
[1609596046555,74.89571192,768.0,767.68,26.0160159]
[1609596046956,2.5771,767.99,767.68,26.0160159]
[1609596048056,3.38,767.99,767.68,26.0160159]
[1609596048356,6.01438,767.69,767.68,26.0160159]
[1609596048955,8.63778,767.69,767.68,26.0160159]
[1609596049358,2.6234,767.69,767.57,29.09706852]
[1609596049758,3.38,767.99,767.57,29.09706852]
[1609596050360,6.01438,767.58,767.43,0.6]
[1609596050560,10.91938,767.58,767.43,0.6]
[1609596051659,10.91938,767.58,767.23,26.10199944]
[1609596051860,10.91938,767.58,766.78,26.14540308]
[1609596052261,2.6209,767.57,766.78,26.14540308]
[1609596052660,4.905,767.58,766.78,26.14540308]
[1609596052860,4.905,767.58,766.74,26.18496354]
[1609596054460,6.01438,766.75,766.61,6.01438]
[1609596055562,6.01438,766.75,766.58,29.26554748]
[1609596055761,2.6154,766.74,766.58,29.26554748]
[1609596056963,2.6154,766.74,766.43,6.01438]
[1609596056964,2.6154,766.74,766.68,26.20416034]
[1609596058066,2.6154,766.74,766.43,6.01438]
[1609596058067,2.6154,766.74,766.6,26.24158275]
[1609596058867,2.6154,766.74,766.62,26.21139861]
[1609596060372,2.6154,766.74,766.66,6.01438]
[1609596060573,3.219,766.81,766.66,6.01438]
[1609596061169,3.219,766.81,766.72,26.19488632]
[1609596061773,2.5881,766.8,766.72,26.19488632]
[1609596061969,3.219,766.81,766.72,26.19488632]
[1609596062470,6.01438,766.73,766.72,26.19488632]
[1609596064774,8.59378,766.73,766.72,26.19488632]
[1609596065473,8.59378,766.73,766.44,3.529]
[1609596065474,8.59378,766.73,766.64,26.20796421]
[1609596065673,2.5794,766.73,766.64,26.20796421]
[1609596066074,3.219,766.81,766.64,26.20796421]
[1609596066473,6.01438,766.65,766.64,26.20796421]
[1609596066874,6.01438,766.65,766.57,26.27403243]
[1609596067384,8.65408,766.65,766.57,26.27403243]
[1609596068275,8.65408,766.65,766.64,23.19716317]
[1609596069585,6.01438,766.65,766.64,23.19716317]
[1609596069786,6.01438,766.65,766.61,23.21113506]
[1609596070378,6.01438,766.65,766.45,26.30595307]
[1609596070579,2.5794,766.64,766.45,26.30595307]
[1609596071381,2.5794,766.64,766.52,23.23957646]
[1609596071580,6.01438,766.65,766.52,23.23957646]
[1609596071779,6.01438,766.65,766.44,3.529]
[1609596071980,6.01438,766.65,766.36,26.33818665]
[1609596072379,6.01438,766.65,766.52,23.25052844]
[1609596072581,6.01438,766.53,766.52,23.25052844]
[1609596074883,6.01438,766.53,766.31,3.243]
[1609596074884,6.01438,766.53,766.38,26.34710518]
[1609596075084,8.60988,766.53,766.38,26.34710518]
[1609596075682,8.60988,766.53,766.37,26.33004627]
[1609596076486,2.5955,766.53,766.39,26.3275447]
[1609596076784,4.522,766.74,766.39,26.3275447]
[1609596076987,3.118,766.92,766.39,26.3275447]
[1609596077184,40.265,811.94,766.39,26.3275447]
[1609596077385,7.21006193,767.79,766.51,23.23702679]
[1609596077785,2.6013,767.37,766.51,23.23702679]
[1609596078485,6.01438,766.52,766.51,23.23702679]
[1609596079386,6.01438,766.52,766.46,23.24240909]
[1609596079586,8.64668,766.52,766.46,23.24240909]
[1609596079786,6.01438,766.52,766.31,29.58439696]
[1609596080487,4.206,766.74,766.31,29.58439696]
[1609596080488,4.206,766.74,766.46,23.24105709]
[1609596081706,4.206,766.74,766.31,3.243]
[1609596081707,4.206,766.74,766.5,23.2274248]
[1609596082094,2.6198,766.73,766.5,23.2274248]
[1609596082496,6.01438,766.51,766.5,23.2274248]
[1609596082693,6.01438,766.51,766.37,23.22314049]
[1609596082895,9.82838,766.51,766.37,23.22314049]
[1609596083503,9.82838,766.51,766.29,23.23639841]
[1609596084096,9.82838,766.51,766.14,23.26405044]
[1609596084499,6.01438,766.15,766.14,23.26405044]
[1609596084900,10.61738,766.15,766.14,23.26405044]
[1609596085097,10.61738,766.15,766.06,23.27810134]
[1609596085698,13.25388,766.15,766.06,23.27810134]
[1609596085897,10.61738,766.15,766.06,23.27810134]
[1609596086398,10.61738,766.15,766.04,23.27687648]
[1609596086597,6.01438,766.05,766.04,23.27687648]
[1609596087397,6.01438,766.05,766.04,17.75477648]
[1609596088199,8.64408,766.05,766.04,17.75477648]
[1609596088800,6.01438,766.05,766.04,17.75477648]
[1609596089701,8.60938,766.05,766.04,10.25057648]
[1609596090102,6.01438,766.05,766.04,10.25057648]
[1609596091006,23.76188,766.05,766.04,10.25057648]
[1609596092207,21.17418,766.05,766.04,4.78587648]
[1609596092813,21.17418,766.05,765.89,26.38046001]
[1609596093209,23.81638,766.05,765.89,26.38046001]
[1609596093908,21.17418,766.05,765.89,26.38046001]
[1609596094310,21.17418,766.05,765.89,5.82746001]
[1609596094509,6.01438,765.9,765.7,29.52082109]
[1609596094708,9.97538,765.9,765.7,29.52082109]
[1609596094909,84.0468,765.78,765.7,29.52082109]
[1609596095608,2.6156,765.77,765.7,29.52082109]
[1609596095809,2.6156,765.77,764.58,37.27242575]
[1609596096210,2.6156,765.77,764.58,31.25804575]
[1609596096609,6.01438,764.73,764.58,31.25804575]
[1609596097120,6.01438,764.73,764.61,31.25690225]
[1609596098518,6.01438,764.62,764.58,4.06]
[1609596099215,2.629,764.61,764.58,4.06]
[1609596100619,6.01438,764.62,764.58,4.06]
[1609596101019,3.98,764.98,764.58,4.06]
[1609596102420,3.98,764.98,764.29,31.28286846]
[1609596102621,6.01438,764.89,764.66,6.01438]
[1609596106124,6.01438,764.89,764.61,31.18873379]
[1609596106525,6.01438,764.73,764.61,31.18873379]
[1609596107324,3.98,764.98,764.61,31.18873379]
[1609596107524,96.9256,765.52,764.61,31.18873379]
[1609596107725,96.9256,765.52,764.63,31.16409821]
[1609596108625,6.01438,764.83,764.63,31.16409821]
[1609596108827,6.01438,764.83,764.6,31.17910516]
[1609596109028,3.746,765.0,764.6,31.17910516]
[1609596109229,3.746,765.0,764.58,4.206]
[1609596109429,3.746,765.0,764.55,6.01438]
[1609596110729,6.01438,764.83,764.55,6.01438]
[1609596112131,6.01438,764.83,764.54,31.16225863]
[1609596112733,6.01438,764.55,764.54,31.16225863]
[1609596113133,11.5498,764.99,764.54,31.16225863]
[1609596113334,11.5498,764.99,764.48,3.477]
[1609596114640,6.01438,764.57,764.48,3.477]
[1609596116641,6.01438,764.49,764.48,3.477]
[1609596118545,6.01438,764.49,764.2,6.01438]
[1609596118946,6.01438,764.49,764.22,31.25899588]
[1609596119145,6.01438,764.49,764.22,35.30899588]
[1609596120148,6.01438,764.49,764.23,31.25657749]
[1609596120748,6.01438,764.27,764.23,31.25657749]
[1609596120949,6.01438,764.27,764.22,35.34284729]
[1609596121749,3.98,764.62,764.22,35.34284729]
[1609596122651,6.01438,764.44,764.22,35.34284729]
[1609596122852,6.01438,764.44,764.22,4.05]
[1609596123253,6.01438,764.44,764.2,6.01438]
[1609596124754,6.01438,764.34,764.2,6.01438]
[1609596126356,3.98,764.62,764.2,6.01438]
[1609596126770,6.01438,764.5,764.2,6.01438]
[1609596126963,9.83438,764.5,764.2,6.01438]
[1609596128760,6.01438,764.21,764.17,31.25496274]
[1609596129168,6.01438,764.21,764.12,6.01438]
[1609596130175,6.01438,764.21,764.04,4.364]
[1609596130772,6.01438,764.05,764.04,4.364]
[1609596131372,6.01438,764.05,763.82,31.3367198]
[1609596132564,6.01438,764.05,763.84,31.33546093]
[1609596132764,6.01438,763.87,763.84,31.33546093]
[1609596133664,4.223,764.19,763.84,31.33546093]
[1609596134165,4.223,764.19,763.78,6.01438]
[1609596134765,6.01438,764.01,763.91,6.01438]
[1609596136165,6.01438,764.01,763.68,31.37690574]
[1609596136667,6.01438,763.87,763.72,6.01438]
[1609596139674,6.01438,763.87,763.67,4.231]
[1609596139874,6.01438,763.87,763.62,31.32834709]
[1609596140271,6.01438,763.87,763.52,31.34975245]
[1609596141978,6.01438,763.87,763.51,31.35323366]
[1609596144681,6.01438,763.87,763.63,6.01438]
[1609596145080,6.01438,763.87,763.58,31.33778573]
[1609596146183,6.01438,763.87,763.51,31.26474902]
[1609596146682,6.01438,763.87,763.53,6.01438]
[1609596150688,6.01438,763.87,763.74,6.01438]
[1609596151485,6.01438,763.87,763.47,31.27613077]
[1609596152688,10.43938,763.87,763.47,31.27613077]
[1609596153590,10.43938,763.87,763.46,6.01438]
[1609596154690,10.43938,763.87,763.59,6.01438]
[1609596154991,10.43938,763.87,763.41,31.24407915]
[1609596155192,10.43938,763.87,763.44,31.24525787]
[1609596156397,1.31068,763.87,763.45,4.029]
[1609596156797,1.31068,763.87,763.86,12.78348]
[1609596157796,6.01438,763.88,763.86,12.78348]
[1609596158999,6.01438,763.88,763.86,6.7691]
[1609596162205,6.01438,763.88,763.86,6.3691]
[1609596177423,6.61438,763.88,763.86,6.3691]
[1609596181333,4.632,764.03,763.86,6.3691]
[1609596181532,4.223,764.19,763.86,6.3691]
[1609596181732,6.83363681,765.04,763.86,6.3691]
[1609596182834,6.01438,764.27,764.19,6.01438]
[1609596183733,6.01438,764.27,763.86,6.3691]
[1609596184834,6.01438,764.0,763.86,6.3691]
[1609596186834,6.01438,763.87,763.86,6.3691]
[1609596191036,6.01438,763.87,763.22,6.01438]
[1609596192838,6.01438,763.35,763.22,6.01438]
[1609596194940,6.01438,763.25,763.22,6.01438]
[1609596195340,6.01438,763.25,763.15,31.39141628]
[1609596196042,5.41438,763.25,763.15,31.39141628]
[1609596196842,6.01438,763.17,763.15,31.39141628]
[1609596198245,6.01438,763.17,763.03,31.4527974]
[1609596199446,6.01438,763.17,763.0,6.01438]
[1609596200646,4.934,763.27,763.0,6.01438]
[1609596201347,6.01438,763.36,763.0,6.01438]
[1609596202953,11.4912,763.49,762.9,4.192]
[1609596202954,6.01438,763.27,763.08,6.01438]
[1609596203551,6.01438,763.27,762.9,4.192]
[1609596204753,6.01438,763.27,762.72,3.852]
[1609596204952,4.46,763.32,762.91,6.01438]
[1609596206353,4.46,763.32,762.92,15.0]
[1609596206753,11.116,764.01,762.92,15.0]
[1609596206955,11.116,764.01,763.64,6.01438]
[1609596207153,6.79747281,764.49,763.64,6.01438]
[1609596207354,11.6601,764.48,763.64,6.01438]
[1609596208954,6.01438,764.36,764.18,6.01438]
[1609596209154,2.998,764.36,764.18,6.01438]
[1609596210956,2.998,764.36,764.35,6.01438]
[1609596212954,2.998,764.36,763.96,15.0]
[1609596213354,2.998,764.36,763.95,26.55244723]
[1609596213855,2.998,764.36,763.95,41.55244723]
[1609596214255,6.01438,764.55,763.95,41.55244723]
[1609596214957,6.01438,764.43,764.24,6.01438]
[1609596215556,6.01438,764.43,763.95,26.55244723]
[1609596216456,6.01438,764.43,763.98,26.62105843]
[1609596217056,6.01438,764.2,763.98,26.62105843]
[1609596217461,6.01438,764.2,763.81,26.68020359]
[1609596217859,10.62838,764.2,763.81,26.68020359]
[1609596219060,6.01438,763.9,763.81,26.68020359]
[1609596219261,6.01438,763.9,763.68,32.73020786]
[1609596220764,6.01438,763.9,763.68,6.01438]
[1609596220963,4.251,764.03,763.8,6.01438]
[1609596221767,4.251,764.03,763.81,15.0]
[1609596222366,6.01438,764.13,763.81,15.0]
[1609596222765,6.01438,764.13,763.8,6.01438]
[1609596222966,6.01438,764.13,763.98,6.01438]
[1609596223668,6.01438,764.13,763.79,26.6262281]
[1609596224368,6.01438,764.13,763.81,26.64680664]
[1609596224968,4.614,764.2,763.81,26.64680664]
[1609596225269,3.705,764.46,763.81,26.64680664]
[1609596225471,11.601,765.14,763.81,26.64680664]
[1609596226769,6.79500605,765.05,763.66,26.68508595]
[1609596226968,9.76200605,765.05,763.66,26.68508595]
[1609596227170,6.01438,763.93,763.81,6.01438]
[1609596227573,6.01438,763.93,763.66,26.68508595]
[1609596228170,6.01438,763.93,763.62,26.676715]
[1609596229072,6.01438,763.79,763.63,6.01438]
[1609596231674,3.498,763.97,763.63,6.01438]
[1609596232276,3.498,763.97,763.64,15.0]
[1609596232676,3.356,764.13,763.64,15.0]
[1609596232878,11.3923,764.52,763.64,15.0]
[1609596233076,6.01438,764.26,764.0,6.01438]
[1609596234779,6.01438,764.26,763.79,26.63695504]
[1609596235179,6.01438,764.03,763.79,26.63695504]
[1609596237182,3.945,764.29,763.79,26.63695504]
[1609596237583,3.945,764.29,763.77,26.63537216]
[1609596238286,11.3923,764.52,763.77,26.63537216]
[1609596238486,4.083,764.29,763.77,26.63537216]
[1609596238687,4.083,764.29,763.76,6.01438]
[1609596239087,6.01438,764.16,763.96,6.01438]
[1609596241089,6.01438,763.97,763.96,6.01438]
[1609596241291,6.01438,763.97,763.72,26.59784816]
[1609596242191,6.01438,763.97,763.67,26.59592367]
[1609596243193,6.01438,763.97,763.86,6.01438]
[1609596243591,6.01438,763.97,763.65,26.59908173]
[1609596244391,6.01438,763.97,763.49,4.029]
[1609596244392,6.01438,763.97,763.63,26.60292607]
[1609596245190,6.01438,763.77,763.76,6.01438]
[1609596245591,4.083,764.29,763.76,6.01438]
[1609596245793,11.3923,764.52,763.76,6.01438]
[1609596247091,6.01438,764.03,763.89,6.01438]
[1609596247792,3.879,764.11,763.89,6.01438]
[1609596248895,3.879,764.11,763.19,15.0]
[1609596249096,6.01438,763.97,763.7,6.01438]
[1609596249796,3.879,764.11,763.7,6.01438]
[1609596250897,3.879,764.11,763.22,15.0]
[1609596251098,6.01438,763.94,763.69,6.01438]
[1609596251297,6.01438,763.94,763.22,15.0]
[1609596253002,3.879,764.11,763.22,15.0]
[1609596253202,6.01438,764.05,763.85,6.01438]
[1609596255103,6.01438,763.96,763.85,6.01438]
[1609596255303,4.888,764.08,763.85,6.01438]
[1609596255907,11.3923,764.52,763.85,6.01438]
[1609596257109,6.01438,764.49,764.4,6.01438]
[1609596257510,10.59538,764.49,764.4,6.01438]
[1609596259115,4.581,764.49,764.48,6.01438]
[1609596259313,4.646,764.72,764.48,6.01438]
[1609596261114,4.646,764.72,764.61,6.01438]
[1609596263114,4.646,764.72,763.97,15.0]
[1609596263316,4.646,764.72,764.71,6.01438]
[1609596264217,6.01438,764.78,764.71,6.01438]
[1609596265817,6.01438,764.78,763.96,29.65391656]
[1609596266619,6.01438,764.78,763.93,29.66201277]
[1609596267119,6.01438,764.78,763.87,29.67517103]
[1609596267318,6.01438,764.66,764.57,6.01438]
[1609596268819,3.753,764.8,764.57,6.01438]
[1609596269220,6.01438,764.78,764.68,6.01438]
[1609596269421,3.753,764.8,764.68,6.01438]
[1609596271020,3.753,764.8,763.9,15.0]
[1609596271221,6.01438,764.78,764.62,6.01438]
[1609596273222,6.01438,764.63,764.62,6.01438]
[1609596273823,6.01438,764.63,763.95,15.0]
[1609596274323,6.01438,764.63,763.82,29.70561924]
[1609596274324,6.01438,764.63,763.96,15.0]
[1609596275228,6.01438,764.63,764.43,6.01438]
[1609596276631,3.105,764.8,764.43,6.01438]
[1609596276834,11.0999,765.04,764.43,6.01438]
[1609596277229,6.01438,764.67,764.55,6.01438]
[1609596278534,4.572,764.7,764.55,6.01438]
[1609596279736,6.01438,764.82,764.55,6.01438]
[1609596281240,6.01438,764.7,764.55,6.01438]
[1609596282840,4.692,764.81,764.55,6.01438]
[1609596283342,6.01438,764.8,764.75,6.01438]
[1609596286244,4.692,764.81,764.75,6.01438]
[1609596286644,11.0999,765.04,764.75,6.01438]
[1609596287145,6.78965139,765.63,764.75,6.01438]
[1609596287344,11.6641,765.62,765.04,6.01438]
[1609596288145,11.6641,765.62,764.21,15.0]
[1609596288345,16.3501,765.62,764.21,15.0]
[1609596288546,88.2159,765.43,764.21,15.0]
[1609596288746,88.2159,765.43,764.34,26.40196392]
[1609596288945,92.2809,765.43,764.34,26.40196392]
[1609596289248,92.2809,765.43,764.21,15.0]
[1609596289249,6.01438,764.62,764.51,6.01438]
[1609596289446,6.01438,764.62,764.17,26.43646543]
[1609596290251,6.01438,764.62,764.08,26.45549677]
[1609596291250,6.01438,764.45,764.37,6.01438]
[1609596291447,6.01438,764.45,764.08,26.45549677]
[1609596291948,10.29938,764.45,764.08,26.45549677]
[1609596292349,10.29938,764.45,764.08,23.37562297]
[1609596293352,6.01438,764.35,764.31,6.01438]
[1609596293953,4.285,764.45,764.31,6.01438]
[1609596295353,4.285,764.45,764.44,6.01438]
[1609596296369,11.4532,764.74,764.44,6.01438]
[1609596297262,11.4532,764.74,764.69,6.01438]
[1609596297464,3.741,764.75,764.69,6.01438]
[1609596297864,12.0617,765.26,764.69,6.01438]
[1609596299272,6.01438,765.01,764.86,6.01438]
[1609596299470,9.23338,765.01,764.86,6.01438]
[1609596300269,9.23338,765.01,764.38,23.31438441]
[1609596300669,9.23338,765.01,764.36,23.32074403]
[1609596301371,6.01438,764.78,764.5,6.01438]
[1609596301572,9.20638,764.78,764.5,6.01438]
[1609596301970,9.20638,764.78,764.2,23.35862545]
[1609596302571,9.20638,764.78,764.21,4.029]
[1609596302770,9.20638,764.78,764.2,23.35862545]
[1609596302971,9.20638,764.78,764.11,23.3758203]
[1609596303371,18.143,764.78,764.11,23.3758203]
[1609596303973,18.143,764.78,763.96,23.40294079]
[1609596305374,6.01438,764.32,764.25,6.01438]
[1609596305574,18.143,764.78,764.25,6.01438]
[1609596305775,4.259,764.32,764.25,6.01438]
[1609596307380,6.01438,764.3,763.86,26.50870466]
[1609596308775,4.259,764.32,763.86,29.73670466]
[1609596308977,4.259,764.32,763.86,3.228]
[1609596309377,6.01438,764.2,763.86,3.228]
[1609596311378,4.259,764.32,763.89,6.01438]
[1609596311577,90.8222,764.68,763.89,6.01438]
[1609596313681,3.192,764.78,763.89,6.01438]
[1609596314089,11.765,764.95,763.89,6.01438]
[1609596315099,12.8545,764.89,763.89,6.01438]
[1609596315491,12.8545,764.89,764.13,6.01438]
[1609596315893,12.8545,764.89,763.86,3.228]
[1609596316184,12.8545,764.89,763.82,4.029]
[1609596317384,12.8545,764.89,764.08,6.01438]
[1609596317385,6.01438,764.1,764.08,6.01438]
[1609596317588,92.0865,764.66,764.08,6.01438]
[1609596317988,11.765,764.95,764.08,6.01438]
[1609596319390,6.01438,764.23,764.08,6.01438]
[1609596320091,6.01438,764.23,763.82,26.60074648]
[1609596320392,6.01438,764.23,763.85,26.60289664]
[1609596321393,3.593,764.29,763.89,6.01438]
[1609596323397,6.01438,764.19,763.89,6.01438]
[1609596323799,3.593,764.29,763.89,6.01438]
[1609596324599,105.5721,764.82,763.89,6.01438]
[1609596325500,6.01438,764.3,764.08,6.01438]
[1609596325902,9.45038,764.3,764.08,6.01438]
[1609596327503,9.45038,764.3,764.19,6.01438]
[1609596331405,3.436,764.3,764.29,6.01438]
[1609596331606,6.01438,764.42,764.29,6.01438]
[1609596332704,11.765,764.95,764.29,6.01438]
[1609596333505,11.765,764.95,764.65,6.01438]
[1609596333706,11.765,764.95,764.02,15.0]
[1609596335406,6.01438,764.84,764.74,6.01438]
[1609596335705,9.93838,764.84,764.74,6.01438]
[1609596337807,9.93838,764.84,764.01,3.402]
[1609596338008,9.93838,764.84,764.02,15.0]
[1609596338608,9.53838,764.84,764.02,15.0]
[1609596339008,9.53838,764.84,764.03,15.0]
[1609596339409,9.53838,764.84,764.73,6.01438]
[1609596340209,3.924,764.84,764.73,6.01438]
[1609596340809,11.765,764.95,764.73,6.01438]
[1609596341409,17.77938,764.95,764.73,6.01438]
[1609596341913,17.77938,764.95,764.33,4.777]
[1609596343415,17.77938,764.95,764.67,6.01438]
[1609596343416,6.01438,764.86,764.67,6.01438]
[1609596343616,6.01438,764.86,764.33,4.777]
[1609596343916,6.01438,764.86,764.26,23.36019769]
[1609596344315,6.01438,764.86,764.45,0.6]
[1609596345519,6.01438,764.63,764.46,6.01438]
[1609596345718,10.57738,764.63,764.45,0.6]
[1609596347521,6.01438,764.46,764.45,0.6]
[1609596347720,9.25938,764.46,764.45,0.6]
[1609596352235,9.25938,764.46,763.98,23.39759935]
[1609596353529,6.01438,763.99,763.98,23.39759935]
[1609596354128,6.01438,763.99,763.92,6.01438]
[1609596354528,4.143,764.12,763.92,6.01438]
[1609596355530,6.01438,764.09,763.92,6.01438]
[1609596356531,6.01438,764.09,763.75,23.4177404]
[1609596357632,6.01438,763.91,763.75,23.4177404]
[1609596357832,6.01438,763.91,763.71,23.40997611]
[1609596359732,6.01438,763.91,763.66,6.01438]
[1609596361534,6.01438,763.91,763.77,6.01438]
[1609596361933,6.01438,763.91,763.44,4.029]
[1609596362334,6.01438,763.91,763.44,27.46358724]
[1609596363535,6.01438,763.77,763.54,6.01438]
[1609596363735,9.31838,763.77,763.54,6.01438]
[1609596365438,9.31838,763.77,763.57,23.4151592]
[1609596365638,3.304,763.77,763.57,23.4151592]
[1609596366437,3.304,763.77,763.42,26.53718043]
[1609596366438,3.304,763.77,763.53,20.32518721]
[1609596367342,3.304,763.77,763.45,20.33838505]
[1609596367540,6.01438,763.6,763.45,20.33838505]
[1609596368741,6.01438,763.6,763.56,20.32447165]
[1609596370452,6.01438,763.6,763.5,20.36428197]
[1609596373054,6.01438,763.6,763.48,20.37764388]
[1609596373552,6.01438,763.5,763.48,20.37764388]
[1609596373753,6.01438,763.5,763.42,6.01438]
[1609596376861,4.256,763.61,763.42,6.01438]
[1609596377566,4.256,763.61,763.52,6.01438]
[1609596378362,4.256,763.61,763.53,20.43682513]
[1609596378564,3.304,763.77,763.53,20.43682513]
[1609596378762,3.834,763.95,763.52,6.01438]
[1609596378963,11.4934,764.37,763.52,6.01438]
[1609596379163,11.4934,764.37,763.53,15.0]
[1609596379564,6.01438,764.0,763.99,6.01438]
[1609596379763,3.849,764.0,763.99,6.01438]
[1609596379963,3.849,764.0,763.58,23.53994399]
[1609596380763,3.849,764.0,763.84,20.40946439]
[1609596381563,3.849,764.0,763.97,6.01438]
[1609596382565,3.849,764.0,763.82,20.4109442]
[1609596383566,3.849,764.0,763.93,6.01438]
[1609596384969,11.4934,764.37,763.93,6.01438]
[1609596385570,6.01438,764.03,764.02,6.01438]
[1609596385770,10.74638,764.03,764.02,6.01438]
[1609596390876,11.4934,764.37,764.02,6.01438]
[1609596391578,6.01438,764.03,764.02,6.01438]
[1609596391776,10.20238,764.03,764.02,6.01438]
[1609596394079,10.20238,764.03,763.85,20.39884391]
[1609596394679,10.20238,764.03,763.8,20.46066881]
[1609596395580,6.01438,763.81,763.8,20.46066881]
[1609596395780,3.231,763.82,763.8,20.46066881]
[1609596396380,3.231,763.82,730.3,0.25878099]
[1609596396381,3.231,763.82,763.68,20.48404111]
[1609596397284,3.231,763.82,763.62,20.49103523]
[1609596397680,3.231,763.82,763.67,6.01438]
[1609596398884,3.231,763.82,763.67,26.4999267]
[1609596400888,4.188,764.03,763.67,26.4999267]
[1609596401187,11.4934,764.37,763.67,6.01438]
[1609596401387,11.4934,764.37,763.67,21.01438]
[1609596401589,11.4934,764.37,763.67,15.0]
[1609596401787,11.4934,764.37,764.14,6.01438]
[1609596403689,11.4934,764.37,764.29,6.01438]
[1609596405391,11.4934,764.37,764.08,20.48978012]
[1609596405691,16.1244,764.37,764.14,6.01438]
[1609596407692,16.1244,764.37,764.33,6.01438]
[1609596408292,16.1244,764.37,764.04,20.44725385]
[1609596408994,4.631,764.37,764.04,20.44725385]
[1609596409693,4.631,764.37,764.08,6.01438]
[1609596409894,4.631,764.37,764.09,20.440333]
[1609596410494,4.631,764.37,764.09,20.040333]
[1609596410794,6.01438,764.46,764.09,20.040333]
[1609596411800,6.01438,764.46,764.19,6.01438]
[1609596413702,6.01438,764.46,764.35,6.01438]
[1609596415604,6.01438,764.46,764.35,5.81438]
[1609596418708,6.01438,764.46,764.01,23.56636638]
[1609596418906,9.13538,764.46,764.01,23.56636638]
[1609596419806,6.01438,764.37,764.12,6.01438]
[1609596421722,6.01438,764.37,763.93,23.58011299]
[1609596422315,6.01438,764.37,764.04,20.43575061]
[1609596423722,6.01438,764.37,764.02,20.43928024]
[1609596423920,6.01438,764.2,764.02,20.43928024]
[1609596424114,10.43838,764.2,764.02,20.43928024]
[1609596425413,10.43838,764.2,764.01,20.47908071]
[1609596426014,10.43838,764.2,764.05,20.47347239]
[1609596427815,10.43838,764.2,764.16,6.01438]
[1609596428315,4.424,764.2,764.16,6.01438]
[1609596429315,3.121,764.46,764.16,6.01438]
[1609596429517,95.681,764.77,764.16,6.01438]
[1609596429918,6.01438,764.41,764.3,6.01438]
[1609596430117,9.13738,764.41,764.3,6.01438]
[1609596430720,9.13738,764.41,764.16,20.45993009]
[1609596430920,9.13738,764.41,764.33,17.3123139]
[1609596431820,9.13738,764.41,763.87,30.78439422]
[1609596431821,9.13738,764.41,764.31,17.32213522]
[1609596432421,3.123,764.41,764.31,17.32213522]
[1609596433823,3.123,764.41,764.4,6.01438]
[1609596435123,11.328,764.96,764.4,6.01438]
[1609596435926,6.01438,764.46,764.4,6.01438]
[1609596436224,4.106,764.49,764.4,6.01438]
[1609596437930,4.106,764.49,764.48,6.01438]
[1609596438130,4.106,764.49,764.48,26.43388638]
[1609596440132,4.106,764.49,764.48,6.01438]
[1609596441132,6.01438,764.71,764.48,6.01438]
[1609596442333,11.328,764.96,764.48,6.01438]
[1609596442835,11.328,764.96,764.6,17.38302317]
[1609596443833,6.01438,764.7,764.64,6.01438]